Cogmind - Beta 13 @@@ ROGUE MODE // 2024.03.31 @ 17:24:02 Player: Bobby43rocks Result: Destroyed by G-34 Mercenary with Small Laser Performance ------------- Evolutions (1) 500 Regions Visited (2) 400 Robots Destroyed (35) 175 Value Destroyed (756) 756 Prototype IDs (0) 0 Alien Tech Used (0) 0 Bonus (0) 0 TOTAL SCORE: 1831 Bonus ------- None Cogmind --------- Core Integrity 0/400 Matter 300/300 Energy 100/100 System Corruption 0% Temperature Cool (6) Movement Core (350) Ox6 Location -9/Materials Parts ------- > --- POWER (2) -------- (None) > --- PROPULSION (2) --- (None) > --- UTILITY (3) ------ Large Storage Unit > --- WEAPON (2) ------- Small Laser > --- INVENTORY (15) --- Wheel Heat Sink Visual Processing Unit Terrain Scan Processor Small Laser Light Assault Rifle Improved Light Cannon Peak State ------------ > --- POWER ------------ Ion Engine Ion Engine > --- PROPULSION ------- Wheel Wheel > --- UTILITY ---------- Heat Sink Large Storage Unit Hardened Light Armor Plating > --- WEAPON ----------- Medium Laser Improved Light Cannon > --- INVENTORY -------- Ion Engine Light Ion Engine Light Treads Core Shielding Medium Laser Small Laser Small Laser Small Laser Light Assault Rifle Improved Light Cannon [Rating: 12] Favorites ----------- Power Ion Engine Engine Ion Engine Propulsion Light Treads Treads Light Treads Wheel Wheel Utility Small Storage Unit Device Heat Sink Storage Small Storage Unit Processor Targeting Computer Protection Core Shielding Weapon Light Assault Rifle Energy Gun Small Laser Ballistic Gun Light Assault Rifle Ballistic Cannon Improved Light Cannon Build | -11 -10 -9 ------- Run | Yrd Mat Mat Slots Evolved 2 | . . 2 Power 1 | . . 1 Propulsion . | . . . Utility 1 | . . 1 Weapon . | . . . Parts Attached 29 | 8 9 12 Power 5 | 1 1 3 Engine 5 | 1 1 3 Core . | . . . Reactor . | . . . Propulsion 7 | 4 2 1 Treads 3 | 2 . 1 Leg . | . . . Wheel 4 | 2 2 . Hover . | . . . Flight . | . . . Utility 9 | 1 5 3 Device 1 | . . 1 Storage 2 | 1 1 . Processor 1 | . 1 . Hackware . | . . . Protection 5 | . 3 2 Artifact . | . . . Weapon 8 | 2 1 5 Energy Gun 5 | . 1 4 Energy Cannon . | . . . Ballistic Gun 2 | 2 . . Ballistic Cannon 1 | . . 1 Launcher . | . . . Special Weapon . | . . . Impact Weapon . | . . . Slashing Weapon . | . . . Piercing Weapon . | . . . Special Melee Weapon . | . . . Unidentified Prototypes . | . . . Parts Lost 17 | . 3 14 Power 4 | . . 4 Propulsion 4 | . 1 3 Utility 4 | . 1 3 Weapon 5 | . 1 4 Highest Loss Streak 6 | . 2 6 To Critical Strikes 1 | . . 1 Average Slot Usage (%) 91 | . 96 77 Engine 14 | . 14 14 Treads 14 | . 20 . Wheel 8 | . 6 12 Device 1 | . . 6 Storage 13 | . 14 11 Processor 3 | . 5 . Protection 8 | . 7 11 Energy Gun 5 | . 3 12 Ballistic Gun 17 | . 23 1 Ballistic Cannon 2 | . . 7 Naked Turns . | . . . Heaviest Build 42 | 12 28 42 Greatest Support 40 | 40 40 20 Greatest Overweight (x) 8 | 1 1 8 Average Overweight (x) . | . . 1 Largest Inventory Capacity 15 | 8 15 15 Average Capacity 10 | 6 9 15 Most Carried 11 | 4 9 11 Average Carried 6 | 2 6 8 Final Capacity 15 | 8 15 15 Final Carried 9 | 4 9 7 Class Distribution -------------------- 100% | Mutant Dominant Class ---------------- Mutant | -10/Materials Mutant | -9/Materials Resources | -11 -10 -9 ----------- Run | Yrd Mat Mat Matter Collected 687 | 204 238 245 Remotely . | . . . Salvage Created 893 | . 391 502 Parts 76 | . 26 50 Haulers Intercepted . | . . . Recyclers Shooed . | . . . Parts Field Recycled . | . . . Retrieved Matter . | . . . Parts Self-Destructed . | . . . Prevented . | . . . Kills | -11 -10 -9 ------- Run | Yrd Mat Mat Combat Hostiles Destroyed 30 | . 13 17 Guns 23 | . 13 10 Cannons 7 | . . 7 Classes Destroyed 6 | . 2 4 Worker 3 | . . 3 Builder 1 | . . 1 Watcher 1 | . . 1 Swarmer 13 | . 6 7 Grunt 16 | . 7 9 Sentry 1 | . . 1 Best Kill Streak 10 | . 3 10 Combat Bots Only 6 | . 3 6 Max Kills in Single Turn 1 | . 1 1 Gunslinging . | . . . Exploded . | . . . Melee . | . . . Uniques/NPCs Destroyed . | . . . Combat | -11 -10 -9 -------- Run | Yrd Mat Mat Hostile Shots Fired 293 | . 88 205 Missed 79 | . 20 59 Damage Taken 2215 | . 717 1498 Core 540 | . 135 405 Absorbed by Shields . | . . . Redirected to Shielding 50 | . 4 46 Core Remaining (%) 73 | 100 46 . Volleys Fired 118 | . 58 60 Largest 2 | . 2 2 Hottest 90 | . 60 90 Shots Fired 212 | . 102 110 Gun 169 | . 102 67 Cannon 43 | . . 43 Launcher . | . . . Special . | . . . Kinetic 135 | . 92 43 Thermal 77 | . 10 67 Explosive . | . . . Electromagnetic . | . . . Robot Hit Streak 8 | . 8 8 Robot Miss Streak 8 | . 4 8 Penetration Max . | . . . Secondary Targets 1 | . . 1 Max Gunslinging Chain 1 | . . 1 Shots Hit Robots 111 | . 59 52 Core Hits 60 | . 31 29 Critical Kills . | . . . Critical Parts Destroyed . | . . . Critical Strikes 2 | . . 2 Burn 1 | . . 1 Blast 1 | . . 1 Melee Attacks . | . . . Impact . | . . . Slashing . | . . . Piercing . | . . . Sneak Attacks . | . . . Combat Hostiles . | . . . Follow-up Attacks . | . . . Damage Inflicted 1501 | . 531 970 Guns 1069 | . 531 538 Cannons 420 | . . 420 Explosions . | . . . Melee . | . . . Ramming 12 | . . 12 Kinetic 883 | . 463 420 Thermal 606 | . 68 538 Explosive . | . . . Electromagnetic . | . . . Impact . | . . . Slashing . | . . . Piercing . | . . . Highest Corruption 1 | . 1 . Average Corruption 1 | . 1 . Corruption Purged . | . . . Corruption Blocked . | . . . Effects 3 | . 3 . Message Errors 1 | . 1 . Energy Discharges 1 | . 1 . Data Loss (minor) 1 | . 1 . Overload Shots . | . . . Overflow Damage 14 | . . 14 Projectiles 14 | . . 14 Explosions . | . . . Melee . | . . . Knockbacks 3 | . . 3 Impact . | . . . Kinetic 3 | . . 3 Secondary . | . . . Self-Inflicted Damage 5 | . . 5 Shots . | . . . Rammed 2 | . . 2 Targets Rammed 2 | . . 2 Kicked . | . . . Crushed . | . . . Highest Temperature 338 | . 38 338 Average Temperature 76 | . 10 101 Received Heat Transfer 759 | . 204 555 Siege Activations . | . . . Robots Corrupted . | . . . Combat Hostiles . | . . . Parts Fried . | . . . Impact Corruptions . | . . . Robots Melted . | . . . Combat Hostiles . | . . . Parts Melted 2 | . . 2 Heat Transferred 1662 | . 150 1512 Parts Sabotaged . | . . . Parts Stolen . | . . . Parts Stripped . | . . . Power Chain Reactions . | . . . Alert | -11 -10 -9 ------- Run | Yrd Mat Mat Peak Influence 346 | . 130 346 Initial 44 | . . 44 Average 66 | . 35 165 Maximum Alert Level 1 | . . 1 Low Security (%) 91 | 100 100 66 Level 1 8 | . . 33 Level 2 . | . . . Level 3 . | . . . Level 4 . | . . . Level 5 . | . . . High Security . | . . . Max Security . | . . . Squads Dispatched 6 | . 4 2 Investigation 1 | . 1 . Extermination . | . . . Reinforcement 5 | . 3 2 Assault . | . . . Garrison . | . . . Intercept . | . . . Searches Triggered . | . . . Construction Impeded . | . . . Haulers Reinforced . | . . . Active Scanning Responses . | . . . Cargo Convoy Interrupts . | . . . Stealth | -11 -10 -9 --------- Run | Yrd Mat Mat Distress Signals 5 | . 2 3 Communications Jammed . | . . . Distress Signals . | . . . Times Spotted 47 | . 18 29 Peak Tracking Total 9 | . 3 9 Tactical Retreats . | . . . Traps | -11 -10 -9 ------- Run | Yrd Mat Mat Traps Triggered 3 | . 3 . Indirectly . | . . . Trap Hack Attempts . | . . . Triggered . | . . . Disarmed . | . . . Reprogrammed . | . . . Reused . | . . . Traps Extracted . | . . . Installed . | . . . Triggered . | . . . Machines | -11 -10 -9 ---------- Run | Yrd Mat Mat Machines Disabled . | . . . Max in Single Turn . | . . . Machines Repaired . | . . . Machines Dismantled . | . . . Machines Sabotaged . | . . . Overloaded Fab Kills . | . . . Hacking | -11 -10 -9 --------- Run | Yrd Mat Mat Machines Accessed 2 | . 2 . Terminals 2 | . 2 . Fabricators . | . . . Repair Stations . | . . . Recycling Units . | . . . Scanalyzers . | . . . Garrison Access . | . . . Total Hacks 3 | . 3 . Successful 3 | . 3 . Failed . | . . . Catastrophic . | . . . Database Lockouts . | . . . Manual . | . . . Terminals 3 | . 3 . Fabricators . | . . . Repair Stations . | . . . Recycling Units . | . . . Scanalyzers . | . . . Garrison Access . | . . . Terminal Hacks 3 | . 3 . Record 2 | . 2 . Unreport Threat 1 | . 1 . Fabricator Hacks . | . . . Repair Station Hacks . | . . . Recycling Unit Hacks . | . . . Scanalyzer . | . . . Garrison Access Hacks . | . . . Unauthorized Hacks . | . . . Terminals . | . . . Fabricators . | . . . Repair Stations . | . . . Recycling Units . | . . . Scanalyzers . | . . . Garrison Access . | . . . Data Cores Recovered . | . . . Used . | . . . Hacking Detections . | . . . Full Trace Events . | . . . Feedback Events . | . . . Feedback Blocked . | . . . Robot Schematics Acquired . | . . . Robots Built . | . . . Authchips . | . . . Time . | . . . Total Robot Build Rating . | . . . Part Schematics Acquired . | . . . Parts Built . | . . . Authchips . | . . . Time . | . . . Total Part Build Rating . | . . . Parts Repaired . | . . . Time . | . . . Parts Recycled . | . . . Recycled Matter . | . . . Retrieved Matter . | . . . Retrieved Components . | . . . Parts Scanalyzed . | . . . Part Schematics Acquired . | . . . Parts Damaged . | . . . Bothacking | -11 -10 -9 ------------ Run | Yrd Mat Mat Used RIF Installer . | . . . Robots Hacked . | . . . Non-combat . | . . . Combat . | . . . Robot Hacks Applied . | . . . Relay Couplers Released . | . . . Fabnet Peak Effective % . | . . . Robots Rewired . | . . . Allies Hacked . | . . . Hacks Repelled . | . . . Allies | -11 -10 -9 -------- Run | Yrd Mat Mat Total Allies . | . . . Largest Group . | . . . Highest-Rated Group . | . . . Highest-Rated Ally . | . . . Total Orders . | . . . Ally Attacks . | . . . Total Damage . | . . . Kills . | . . . Allies Corrupted . | . . . Allies Melted . | . . . Intel | -11 -10 -9 ------- Run | Yrd Mat Mat Robot Analysis Total . | . . . Derelict Logs Recovered . | . . . Drone Launches . | . . . Drone Recoveries . | . . . Exploration | -11 -10 -9 ------------- Run | Yrd Mat Mat Turns Passed 1612 | 147 1043 422 Spaces Moved 921 | 99 653 169 Core 36 | 23 . 13 Treads 497 | 69 417 11 Legs . | . . . Wheels 388 | 7 236 145 Hover . | . . . Flight . | . . . Fastest Speed 50 | 50 80 95 Average Speed 133 | 134 134 131 Slowest Speed 450 | 160 160 450 Overloaded Moves . | . . . Propulsion Burnouts . | . . . Robots Hopped . | . . . Cave-ins Triggered . | . . . Exploration Rate (%) 26 | 4 61 14 Regions Visited 2 Branch Regions . Pre-discovered Areas . | . . . Known Exits Taken . | . . . Unknown Exits Taken 2 | 1 1 . Scrap Searched . | . . . Spaces Dug . | . . . Terrain Destroyed . | . . . Melee . | . . . Projectile . | . . . AOE . | . . . Terrain Rammed . | . . . Walls Destroyed . | . . . Machines Disabled . | . . . Actions | -11 -10 -9 --------- Run | Yrd Mat Mat Total 1102 | 111 734 257 Wait . | . . . Move 919 | 98 652 169 Hop . | . . . Pick Up 22 | 3 9 10 Fast Attach 11 | 7 3 1 Attach 12 | 1 3 8 Detach 4 | 2 2 . Swap 6 | . 3 3 Drop 8 | . 4 4 Fire 118 | . 58 60 Melee . | . . . Ram 2 | . . 2 Kick . | . . . Crush . | . . . Escape Stasis . | . . . Rewire . | . . . Trap . | . . . Miscellaneous . | . . . Route ------- -11/Scrapyard -10/Materials (discovered 3 exits: *Mat x2 / [*Min]) -9/Materials History --------- Turn | Location | Event 26 | -11/Scrapyard | Discovered new exit (range 15) 148 | -11/Scrapyard | Entered Materials 300 | -10/Materials | Build established: Mutant 627 | -10/Materials | Discovered new exit (range 7) 843 | -10/Materials | Discovered new exit (range 15) 1022 | -10/Materials | Discovered new exit (range 16) 1039 | -10/Materials | Core integrity fell below 50% 1191 | -10/Materials | Entered another Materials area 1191 | -9/Materials | Evolved 2 slots: Power x1, Utility x1 1476 | -9/Materials | Lost 5 parts (2p2n1u) 1525 | -9/Materials | Core integrity fell below 50% 1552 | -9/Materials | Lost 6 parts (1p1n1u3w) 1598 | -9/Materials | Core integrity fell below 20% 1613 | -9/Materials | Destroyed by G-34 Mercenary with Small Laser Last Messages --------------- K-01 Serf collects debris. R-06 Scavenger collects Heat Sink. K-01 Serf collects debris. R-06 Scavenger collects Flight Unit. K-01 Serf destroyed. R-06 Scavenger collects Wheel. K-01 Serf collects debris. Ion Engine melted. Heat Sink melted. G-34 Mercenary destroyed. K-01 Serf collects debris. Ion Engine destroyed. K-01 Serf collects debris. Core Shielding destroyed. K-01 Serf collects debris. Acquired 10 matter. Sml. Laser destroyed. M-13 Machinist repairs G-34 Mercenary. K-01 Serf collects debris. Slammed into G-47 Trooper. Map ----- +----------------------------------------------------+ | ?????????????????????????????????????????????????? | | ?????????????????????????????????????????????????? | | ?????????????????????????????????????????????????? | | ?????????????????????????????????????????????????? | | ?????????????????????????????????????????????????? | | ?????????????????????????????????????????????????? | | ?????????????????????????????????????????????????? | | ?????????????????????????????????????????????????? | | ?????????????????????????????????????????????????? | | ?????????????????????????????????????????????????? | | ??????????????????????? ???????????????????????? | | ??????????????????????+ ???????????????????????? | | ??????????????????????# ???????? ???????????? | | ??????????????????????# ???????? #???????????? | | ??????????????????????# ???????? #???????????? | | ??????????????????????# ???????? #???????????? | | ??????????????????????# ???????? #???????????? | | ??????????????????????# #??????#% #???????????? | | ??????????????????????# #??????# #???????????? | | ??????????????????????# #??????# #???????????? | | ??????????????????????# #??????# #???????????? | | ??????????????????????# ##?????# #???????????? | | ??????????????????????# ## ????# #???????????? | | ?????????????????????## m ## ???# #???????????? | | ?????????????????????# ==g%###+### #???????????? | | ????????????????###### %*@k%*%%%% %*#???????????? | | ?????????????? + =Tg=%=% = ############? | | ??????????????? # [a= a* k | | ?????????????????????# =%###+### | | ?????????????????????###+###?? # | | ??????????????????????????????? # ############? | | ??????????????????????????????? # #???????????? | | ???????????????????????????????? # #???????????? | | ???????????????????????????????? # #???????????? | | ?????????????????????????????????# #???????????? | | ?????????????????????????????????#% ##########??? | | ?????????????????????????????????# # #??? | | ?????????????????????????????????# # #??? | | ?????????????????????????????????# # """#??? | | ?????????????????????????????????# # """#??? | | ?????????????????????????????????# % # """#??? | | ?????????????????????????????????# # """#??? | | ?????????????????????????????????# + """#??? | | ???????????????????????########### # #??? | | ???????????????????????# # # #??? | | ???????????????????????# # ##########??? | | ???????????????????????# ] # ####?? | | ???????????????????????# ] # | | ???????????????????????# "" # ####?? | | ???????????????????????# "T # ########????? | +----------------------------------------------------+ Best States ------------- Heat Dissipation 38 Energy Generation 15 Energy Capacity 400 Matter Stores 300 Matter Capacity 300 Sight Range 16 Terrain Scan Density 10 Armor Coverage 150 Core Shielding 20 Evasion (%) 44 Targeting Accuracy 5 Recoil Reduction 2 Item Schematics ----------------- None Robot Schematics ------------------ None Fabricated ------------ Nothing Alien Tech Used ----------------- None Achievements -------------- None Challenges ------------ None Game ------ Seed MicroIntegrityRipper Manual? 0 Play Time 00:20:29 Cumulative 1.3 hours Start 2024.03.31 @ 17:06:40 End 2024.03.31 @ 17:24:02 Sessions 1 Manual Loads 0 Difficulty Rogue Special Mode None Game No. 4 Rogue 4 Adventurer 0 Explorer 0 Win Type - Total 0 Types 0/0/0/0/0/0/0/0/0 Lore% 0 Gallery% 3 Achievement% 1 Wizard Run 0 Options --------- Layout 1 ASCII 0 Keyboard 1 Movement Arrows Keybinds 0 Fullscreen 2 Font 24/Smallcaps Map View 50x35 Zoom Use 0% Tactical HUD 0 Map Filters NONE Filters NONE Steam 1 RUN: 1f7014e9-2e3e-40b8-9081-c9a7536f38d4